[Event "Titled Tuesday Blitz July 20 2021"]
[White "Grabinsky, Aaron"]
[Black "Rozhkov, Viacheslav"]
[WhiteFideId "2087090"]
[BlackFideId "4181484"]
[WhiteElo "2353"]
[BlackElo "2324"]
[Result "1-0"]
[Round "04"]
[TimeControl "180+1"]
[Date "2021.07.20"]
[WhiteClock "0:00:21"]
[BlackClock "0:00:02"]

1. b3 {[%clk 0:03:00]}  d5 {[%clk 0:02:59]} 2. Bb2 {[%clk 0:03:01]}  e6 {[%clk 0:02:59]} 3. Nf3 {[%clk 0:03:01]}  Nf6 {[%clk 0:02:59]} 4. e3 {[%clk 0:03:01]}  Be7 {[%clk 0:02:59]} 5. c4 {[%clk 0:03:02]}  O-O {[%clk 0:02:59]} 6. Be2 {[%clk 0:03:02]}  Ne4 {[%clk 0:02:57]} 7. cxd5 {[%clk 0:03:00]}  exd5 {[%clk 0:02:57]} 8. O-O {[%clk 0:02:58]}  Bf6 {[%clk 0:02:57]} 9. Qc2 {[%clk 0:02:54]}  Bxb2 {[%clk 0:02:53]} 10. Qxb2 {[%clk 0:02:55]}  Qf6 {[%clk 0:02:53]} 11. Qxf6 {[%clk 0:02:51]}  Nxf6 {[%clk 0:02:54]} 12. d3 {[%clk 0:02:51]}  c6 {[%clk 0:02:53]} 13. Nc3 {[%clk 0:02:49]}  Bf5 {[%clk 0:02:51]} 14. b4 {[%clk 0:02:48]}  Nbd7 {[%clk 0:02:45]} 15. a4 {[%clk 0:02:47]}  a6 {[%clk 0:02:39]} 16. Ra3 {[%clk 0:02:38]}  a5 {[%clk 0:02:21]} 17. Rb1 {[%clk 0:02:26]}  axb4 {[%clk 0:02:19]} 18. Rxb4 {[%clk 0:02:27]}  Ra7 {[%clk 0:02:04]} 19. d4 {[%clk 0:02:17]}  Rfa8 {[%clk 0:01:58]} 20. Rab3 {[%clk 0:02:07]}  b6 {[%clk 0:01:57]} 21. h3 {[%clk 0:02:03]}  Bc2 {[%clk 0:01:50]} 22. Ra3 {[%clk 0:01:55]}  c5 {[%clk 0:01:48]} 23. dxc5 {[%clk 0:01:44]}  bxc5 {[%clk 0:01:47]} 24. Rb2 {[%clk 0:01:37]}  Be4 {[%clk 0:01:16]} 25. Rd2 {[%clk 0:01:26]}  Nb6 {[%clk 0:01:05]} 26. Bb5 {[%clk 0:01:25]}  Bxf3 {[%clk 0:00:59]} 27. gxf3 {[%clk 0:01:26]}  g6 {[%clk 0:00:52]} 28. Ra1 {[%clk 0:01:23]}  Kg7 {[%clk 0:00:40]} 29. Rc1 {[%clk 0:01:20]}  Rd8 {[%clk 0:00:26]} 30. Ne2 {[%clk 0:01:15]}  c4 {[%clk 0:00:17]} 31. Nc3 {[%clk 0:01:13]}  Rd6 {[%clk 0:00:11]} 32. Rcd1 {[%clk 0:01:12]}  Ra5 {[%clk 0:00:10]} 33. e4 {[%clk 0:01:06]}  Nfd7 {[%clk 0:00:06]} 34. exd5 {[%clk 0:00:53]}  Ne5 {[%clk 0:00:06]} 35. Kg2 {[%clk 0:00:51]}  Nd3 {[%clk 0:00:06]} 36. Kg3 {[%clk 0:00:48]}  Nxd5 {[%clk 0:00:03]} 37. Ne4 {[%clk 0:00:38]}  Rb6 {[%clk 0:00:02]} 38. Bxc4 {[%clk 0:00:37]}  N5f4 {[%clk 0:00:02]} 39. Bxd3 {[%clk 0:00:35]}  Nxd3 {[%clk 0:00:03]} 40. Rxd3 {[%clk 0:00:35]}  Rxa4 {[%clk 0:00:04]} 41. Rd7 {[%clk 0:00:32]}  h5 {[%clk 0:00:04]} 42. Rc7 {[%clk 0:00:32]}  h4+ {[%clk 0:00:04]} 43. Kxh4 {[%clk 0:00:29]}  Rb3 {[%clk 0:00:05]} 44. Kg4 {[%clk 0:00:22]}  Kh6 {[%clk 0:00:04]} 45. Rxf7 {[%clk 0:00:21]}  g5 {[%clk 0:00:02]} 46. Rd6# {[%clk 0:00:21]} 1-0


[Site "https://www.chess.com"]

[Event "Titled Tuesday Blitz July 20 2021"]
[White "Gracia Alvarez, Gerardo Antonio"]
[Black "Leitao, Rafael"]
[WhiteFideId "5109124"]
[BlackFideId "2101246"]
[WhiteElo "2148"]
[BlackElo "2609"]
[Result "1/2-1/2"]
[Round "04"]
[TimeControl "180+1"]
[Date "2021.07.21"]
[WhiteClock "0:00:03"]
[BlackClock "0:00:14"]

1. d4 {[%clk 0:03:00]}  Nf6 {[%clk 0:02:56]} 2. Bf4 {[%clk 0:02:59]}  g6 {[%clk 0:02:56]} 3. e3 {[%clk 0:02:56]}  Bg7 {[%clk 0:02:56]} 4. Nf3 {[%clk 0:02:56]}  c5 {[%clk 0:02:56]} 5. c3 {[%clk 0:02:55]}  O-O {[%clk 0:02:54]} 6. Be2 {[%clk 0:02:50]}  d6 {[%clk 0:02:52]} 7. h3 {[%clk 0:02:50]}  b6 {[%clk 0:02:51]} 8. Nbd2 {[%clk 0:02:49]}  Bb7 {[%clk 0:02:52]} 9. O-O {[%clk 0:02:48]}  Nc6 {[%clk 0:02:49]} 10. Bh2 {[%clk 0:02:46]}  cxd4 {[%clk 0:02:47]} 11. exd4 {[%clk 0:02:44]}  Bh6 {[%clk 0:02:43]} 12. Re1 {[%clk 0:02:38]}  Nd5 {[%clk 0:02:38]} 13. Bf1 {[%clk 0:02:35]}  Nf4 {[%clk 0:02:35]} 14. Nc4 {[%clk 0:02:21]}  Rc8 {[%clk 0:01:57]} 15. Ne3 {[%clk 0:02:21]}  f5 {[%clk 0:01:48]} 16. Bc4+ {[%clk 0:01:16]}  Kh8 {[%clk 0:01:41]} 17. Nd5 {[%clk 0:01:17]}  Na5 {[%clk 0:01:10]} 18. Bxf4 {[%clk 0:01:00]}  Nxc4 {[%clk 0:00:48]} 19. Bxh6 {[%clk 0:01:00]}  Bxd5 {[%clk 0:00:48]} 20. Bxf8 {[%clk 0:01:01]}  Qxf8 {[%clk 0:00:48]} 21. Qe2 {[%clk 0:00:57]}  Rc7 {[%clk 0:00:36]} 22. b3 {[%clk 0:00:52]}  Na5 {[%clk 0:00:35]} 23. c4 {[%clk 0:00:51]}  Ba8 {[%clk 0:00:24]} 24. d5 {[%clk 0:00:42]}  e5 {[%clk 0:00:19]} 25. dxe6 {[%clk 0:00:39]}  Nc6 {[%clk 0:00:20]} 26. Qb2+ {[%clk 0:00:36]}  Kg8 {[%clk 0:00:19]} 27. Nd4 {[%clk 0:00:31]}  Ne5 {[%clk 0:00:18]} 28. Rad1 {[%clk 0:00:29]}  f4 {[%clk 0:00:18]} 29. Nb5 {[%clk 0:00:27]}  Qf6 {[%clk 0:00:16]} 30. Rxe5 {[%clk 0:00:18]}  dxe5 {[%clk 0:00:15]} 31. Nxc7 {[%clk 0:00:17]}  Bxg2 {[%clk 0:00:14]} 32. Kxg2 {[%clk 0:00:08]}  f3+ {[%clk 0:00:14]} 33. Kh1 {[%clk 0:00:05]}  Qf5 {[%clk 0:00:14]} 34. Rd8+ {[%clk 0:00:03]}  Kg7 {[%clk 0:00:14]} 35. Rd7+ {[%clk 0:00:03]}  Kg8 {[%clk 0:00:14]} 36. Rd8+ {[%clk 0:00:02]}  Kg7 {[%clk 0:00:14]} 37. Rd7+ {[%clk 0:00:03]}  Kg8 {[%clk 0:00:14]} 38. Rd8+ {[%clk 0:00:03]} 1/2-1/2


[Site "https://www.chess.com"]

[Event "Titled Tuesday Blitz July 20 2021"]
[White "Har-Zvi, Ronen"]
[Black "Rorrer, Grayson"]
[WhiteFideId "2801485"]
[BlackFideId "30944996"]
[WhiteElo "2523"]
[BlackElo "2122"]
[Result "1-0"]
[Round "04"]
[TimeControl "180+1"]
[Date "2021.07.20"]
[WhiteClock "0:02:37"]
[BlackClock "0:02:15"]

1. Nf3 {[%clk 0:03:00]}  Nf6 {[%clk 0:02:59]} 2. c4 {[%clk 0:03:00]}  e6 {[%clk 0:02:58]} 3. d4 {[%clk 0:03:00]}  Bb4+ {[%clk 0:02:58]} 4. Bd2 {[%clk 0:02:58]}  a5 {[%clk 0:02:58]} 5. g3 {[%clk 0:02:58]}  d6 {[%clk 0:02:58]} 6. Bg2 {[%clk 0:02:58]}  Nbd7 {[%clk 0:02:59]} 7. O-O {[%clk 0:02:59]}  e5 {[%clk 0:02:59]} 8. Nc3 {[%clk 0:02:58]}  O-O {[%clk 0:02:59]} 9. a3 {[%clk 0:02:58]}  e4 {[%clk 0:02:58]} 10. axb4 {[%clk 0:02:57]}  exf3 {[%clk 0:02:39]} 11. Bxf3 {[%clk 0:02:57]}  c6 {[%clk 0:02:25]} 12. b5 {[%clk 0:02:54]}  Qc7 {[%clk 0:02:21]} 13. b4 {[%clk 0:02:53]}  c5 {[%clk 0:02:15]} 14. dxc5 {[%clk 0:02:40]}  dxc5 {[%clk 0:02:16]} 15. Bf4 {[%clk 0:02:40]}  Qd8 {[%clk 0:02:15]} 16. bxc5 {[%clk 0:02:37]} 1-0


[Site "https://www.chess.com"]

[Event "Titled Tuesday Blitz July 20 2021"]
[White "Hebden, Mark L"]
[Black "Kukhmazov, Arsen"]
[WhiteFideId "400084"]
[BlackFideId "24108260"]
[WhiteElo "2457"]
[BlackElo "2453"]
[Result "1-0"]
[Round "04"]
[TimeControl "180+1"]
[Date "2021.07.20"]
[WhiteClock "0:00:44"]
[BlackClock "0:00:49"]

1. d4 {[%clk 0:03:00]}  d5 {[%clk 0:02:59]} 2. Nf3 {[%clk 0:03:01]}  Nf6 {[%clk 0:02:59]} 3. c4 {[%clk 0:03:01]}  c6 {[%clk 0:03:00]} 4. e3 {[%clk 0:03:00]}  Bg4 {[%clk 0:02:59]} 5. cxd5 {[%clk 0:02:59]}  cxd5 {[%clk 0:02:57]} 6. Qb3 {[%clk 0:02:59]}  Qc7 {[%clk 0:02:55]} 7. Bd2 {[%clk 0:02:49]}  Nc6 {[%clk 0:02:54]} 8. Nc3 {[%clk 0:02:41]}  e6 {[%clk 0:02:53]} 9. Rc1 {[%clk 0:02:35]}  Bxf3 {[%clk 0:02:47]} 10. gxf3 {[%clk 0:02:34]}  Be7 {[%clk 0:02:46]} 11. f4 {[%clk 0:02:31]}  O-O {[%clk 0:02:46]} 12. h4 {[%clk 0:02:21]}  h5 {[%clk 0:02:41]} 13. Be2 {[%clk 0:02:17]}  g6 {[%clk 0:02:41]} 14. f3 {[%clk 0:02:14]}  Rfd8 {[%clk 0:02:33]} 15. Kf2 {[%clk 0:02:11]}  Rac8 {[%clk 0:02:33]} 16. Na4 {[%clk 0:02:04]}  Nd7 {[%clk 0:02:14]} 17. Kg2 {[%clk 0:02:02]}  Bf6 {[%clk 0:02:06]} 18. Bb5 {[%clk 0:01:53]}  Ndb8 {[%clk 0:01:48]} 19. Nc5 {[%clk 0:01:46]}  Qb6 {[%clk 0:01:47]} 20. Bd3 {[%clk 0:01:43]}  Qxb3 {[%clk 0:01:43]} 21. Nxb3 {[%clk 0:01:41]}  b6 {[%clk 0:01:42]} 22. a3 {[%clk 0:01:39]}  a6 {[%clk 0:01:31]} 23. Kg3 {[%clk 0:01:34]}  Kf8 {[%clk 0:01:25]} 24. Rc2 {[%clk 0:01:33]}  Ke8 {[%clk 0:01:25]} 25. Rhc1 {[%clk 0:01:32]}  Kd7 {[%clk 0:01:26]} 26. Be1 {[%clk 0:01:27]}  Ne7 {[%clk 0:01:26]} 27. e4 {[%clk 0:01:24]}  Rxc2 {[%clk 0:01:25]} 28. Rxc2 {[%clk 0:01:24]}  Nec6 {[%clk 0:01:19]} 29. Bf2 {[%clk 0:01:19]}  Rg8 {[%clk 0:01:04]} 30. Kh3 {[%clk 0:01:18]}  Rc8 {[%clk 0:01:01]} 31. exd5 {[%clk 0:01:13]}  exd5 {[%clk 0:01:02]} 32. f5 {[%clk 0:01:13]}  g5 {[%clk 0:01:02]} 33. hxg5 {[%clk 0:01:12]}  Bxg5 {[%clk 0:01:03]} 34. f6 {[%clk 0:01:10]}  Ke6 {[%clk 0:01:03]} 35. Bh4 {[%clk 0:00:58]}  Kxf6 {[%clk 0:00:53]} 36. Rg2 {[%clk 0:00:50]}  Bxh4 {[%clk 0:00:53]} 37. Kxh4 {[%clk 0:00:50]}  Ne7 {[%clk 0:00:54]} 38. Rg5 {[%clk 0:00:46]}  Ng6+ {[%clk 0:00:50]} 39. Bxg6 {[%clk 0:00:45]}  fxg6 {[%clk 0:00:51]} 40. Rxd5 {[%clk 0:00:46]}  Rc6 {[%clk 0:00:49]} 41. Rd8 {[%clk 0:00:44]} 1-0


[Site "https://www.chess.com"]

[Event "Titled Tuesday Blitz July 20 2021"]
[White "Huynh, Ngoc Thuy Linh"]
[Black "Moroni, Luca Jr"]
[WhiteFideId "12403334"]
[BlackFideId "865834"]
[WhiteElo "1780"]
[BlackElo "2491"]
[Result "0-1"]
[Round "04"]
[TimeControl "180+1"]
[Date "2021.07.20"]
[WhiteClock "0:00:44"]
[BlackClock "0:01:45"]

1. c4 {[%clk 0:03:00]}  g6 {[%clk 0:02:56]} 2. g3 {[%clk 0:03:01]}  Bg7 {[%clk 0:02:57]} 3. Bg2 {[%clk 0:03:01]}  d6 {[%clk 0:02:58]} 4. Nc3 {[%clk 0:02:52]}  Nc6 {[%clk 0:02:58]} 5. Nf3 {[%clk 0:02:52]}  Bd7 {[%clk 0:02:58]} 6. d4 {[%clk 0:02:51]}  Qc8 {[%clk 0:02:58]} 7. h4 {[%clk 0:02:43]}  Nf6 {[%clk 0:02:55]} 8. d5 {[%clk 0:02:33]}  Na5 {[%clk 0:02:48]} 9. Nd2 {[%clk 0:02:33]}  c5 {[%clk 0:02:46]} 10. a3 {[%clk 0:02:22]}  a6 {[%clk 0:02:41]} 11. Rb1 {[%clk 0:02:10]}  b5 {[%clk 0:02:39]} 12. e4 {[%clk 0:02:02]}  Ng4 {[%clk 0:02:26]} 13. O-O {[%clk 0:01:43]}  bxc4 {[%clk 0:02:14]} 14. Qe2 {[%clk 0:01:33]}  Rb8 {[%clk 0:01:54]} 15. f3 {[%clk 0:01:07]}  Bd4+ {[%clk 0:01:51]} 16. Kh1 {[%clk 0:01:07]}  Ne3 {[%clk 0:01:51]} 17. Re1 {[%clk 0:01:00]}  O-O {[%clk 0:01:48]} 18. Ra1 {[%clk 0:00:50]}  Nc2 {[%clk 0:01:45]} 19. Nxc4 {[%clk 0:00:44]} 0-1


[Site "https://www.chess.com"]

[Event "Titled Tuesday Blitz July 20 2021"]
[White "Janaszak, Dawid"]
[Black "Preotu, Razvan"]
[WhiteFideId "1119206"]
[BlackFideId "2613280"]
[WhiteElo "2332"]
[BlackElo "2407"]
[Result "0-1"]
[Round "04"]
[TimeControl "180+1"]
[Date "2021.07.21"]
[WhiteClock "0:00:02"]
[BlackClock "0:00:13"]

1. e4 {[%clk 0:03:00]}  c5 {[%clk 0:02:57]} 2. Nc3 {[%clk 0:02:59]}  d6 {[%clk 0:02:57]} 3. f4 {[%clk 0:02:59]}  Nc6 {[%clk 0:02:57]} 4. Nf3 {[%clk 0:02:59]}  g6 {[%clk 0:02:57]} 5. d4 {[%clk 0:02:53]}  cxd4 {[%clk 0:02:56]} 6. Nxd4 {[%clk 0:02:53]}  Bg7 {[%clk 0:02:56]} 7. Nb3 {[%clk 0:02:41]}  Nf6 {[%clk 0:02:02]} 8. Be2 {[%clk 0:02:40]}  Qb6 {[%clk 0:01:53]} 9. Bf3 {[%clk 0:02:11]}  Be6 {[%clk 0:01:42]} 10. Qe2 {[%clk 0:02:11]}  Bxb3 {[%clk 0:01:42]} 11. axb3 {[%clk 0:02:08]}  Nd4 {[%clk 0:01:42]} 12. Qf2 {[%clk 0:01:57]}  Nxf3+ {[%clk 0:01:38]} 13. Qxf3 {[%clk 0:01:57]}  O-O {[%clk 0:01:38]} 14. Be3 {[%clk 0:01:55]}  Qc6 {[%clk 0:01:38]} 15. O-O {[%clk 0:01:51]}  a5 {[%clk 0:01:33]} 16. Rfe1 {[%clk 0:01:41]}  b5 {[%clk 0:01:29]} 17. Bd4 {[%clk 0:01:32]}  Rfc8 {[%clk 0:01:16]} 18. Re2 {[%clk 0:01:17]}  b4 {[%clk 0:01:12]} 19. Bxf6 {[%clk 0:01:13]}  Bxf6 {[%clk 0:00:55]} 20. Nd5 {[%clk 0:01:13]}  Bd4+ {[%clk 0:00:54]} 21. Kh1 {[%clk 0:01:08]}  Qb7 {[%clk 0:00:53]} 22. e5 {[%clk 0:01:04]}  Kf8 {[%clk 0:00:38]} 23. exd6 {[%clk 0:00:59]}  exd6 {[%clk 0:00:39]} 24. Re7 {[%clk 0:00:52]}  Qc6 {[%clk 0:00:36]} 25. f5 {[%clk 0:00:45]}  g5 {[%clk 0:00:28]} 26. f6 {[%clk 0:00:33]}  Qxc2 {[%clk 0:00:19]} 27. Rae1 {[%clk 0:00:21]}  Be5 {[%clk 0:00:18]} 28. Qh3 {[%clk 0:00:16]}  Qg6 {[%clk 0:00:17]} 29. Qd7 {[%clk 0:00:13]}  Bxf6 {[%clk 0:00:15]} 30. Qxd6 {[%clk 0:00:10]}  Bxe7 {[%clk 0:00:15]} 31. Qxe7+ {[%clk 0:00:09]}  Kg7 {[%clk 0:00:14]} 32. Qe5+ {[%clk 0:00:07]}  f6 {[%clk 0:00:12]} 33. Qe7+ {[%clk 0:00:06]}  Qf7 {[%clk 0:00:13]} 34. Qd6 {[%clk 0:00:04]}  Rd8 {[%clk 0:00:12]} 35. Qc6 {[%clk 0:00:02]}  Qxd5 {[%clk 0:00:12]} 36. Re7+ {[%clk 0:00:02]}  Kg6 {[%clk 0:00:13]} 37. Qc2+ {[%clk 0:00:02]}  Qd3 {[%clk 0:00:13]} 0-1


[Site "https://www.chess.com"]

[Event "Titled Tuesday Blitz July 20 2021"]
[White "Jarovinsky, Alexey"]
[Black "Novikov, Evgenij"]
[WhiteFideId "14115131"]
[BlackFideId "4125380"]
[WhiteElo "2446"]
[BlackElo "2242"]
[Result "1-0"]
[Round "04"]
[TimeControl "180+1"]
[Date "2021.07.20"]
[WhiteClock "0:00:02"]
[BlackClock "0:00:12"]

1. Nc3 {[%clk 0:03:00]}  d5 {[%clk 0:02:59]} 2. e4 {[%clk 0:03:00]}  c6 {[%clk 0:02:59]} 3. g3 {[%clk 0:02:59]}  g6 {[%clk 0:03:00]} 4. Bg2 {[%clk 0:02:59]}  e6 {[%clk 0:02:59]} 5. d4 {[%clk 0:02:58]}  Bg7 {[%clk 0:02:58]} 6. Nf3 {[%clk 0:02:53]}  Ne7 {[%clk 0:02:58]} 7. h4 {[%clk 0:02:51]}  dxe4 {[%clk 0:02:50]} 8. Nxe4 {[%clk 0:02:51]}  Nf5 {[%clk 0:02:50]} 9. Bg5 {[%clk 0:02:44]}  f6 {[%clk 0:02:39]} 10. Bf4 {[%clk 0:02:40]}  O-O {[%clk 0:02:36]} 11. Qd2 {[%clk 0:02:34]}  h5 {[%clk 0:02:28]} 12. O-O-O {[%clk 0:02:33]}  Nd7 {[%clk 0:02:19]} 13. Rhe1 {[%clk 0:02:24]}  Re8 {[%clk 0:02:13]} 14. c4 {[%clk 0:02:18]}  Nf8 {[%clk 0:02:07]} 15. c5 {[%clk 0:01:54]}  b6 {[%clk 0:01:52]} 16. Nd6 {[%clk 0:01:51]}  Nxd6 {[%clk 0:01:45]} 17. cxd6 {[%clk 0:01:44]}  c5 {[%clk 0:01:34]} 18. dxc5 {[%clk 0:01:35]}  bxc5 {[%clk 0:01:34]} 19. Ne5 {[%clk 0:01:21]}  fxe5 {[%clk 0:01:01]} 20. Bg5 {[%clk 0:01:20]}  Qb6 {[%clk 0:01:01]} 21. Bxa8 {[%clk 0:01:17]}  e4 {[%clk 0:01:01]} 22. Bxe4 {[%clk 0:01:08]}  Bd7 {[%clk 0:00:57]} 23. Re3 {[%clk 0:00:57]}  c4 {[%clk 0:00:40]} 24. Rc3 {[%clk 0:00:50]}  Rb8 {[%clk 0:00:38]} 25. Be3 {[%clk 0:00:47]}  Qa5 {[%clk 0:00:36]} 26. Bd4 {[%clk 0:00:34]}  e5 {[%clk 0:00:36]} 27. Be3 {[%clk 0:00:32]}  Ne6 {[%clk 0:00:36]} 28. Bd5 {[%clk 0:00:26]}  Kh7 {[%clk 0:00:35]} 29. Bxc4 {[%clk 0:00:21]}  Nd4 {[%clk 0:00:34]} 30. Ra3 {[%clk 0:00:12]}  Qc5 {[%clk 0:00:32]} 31. Rc3 {[%clk 0:00:11]}  Qa5 {[%clk 0:00:29]} 32. Kb1 {[%clk 0:00:10]}  Bf5+ {[%clk 0:00:28]} 33. Bd3 {[%clk 0:00:08]}  Be6 {[%clk 0:00:26]} 34. a3 {[%clk 0:00:06]}  Nb5 {[%clk 0:00:23]} 35. Bxb5 {[%clk 0:00:06]}  Qxb5 {[%clk 0:00:24]} 36. d7 {[%clk 0:00:05]}  e4 {[%clk 0:00:22]} 37. Bd4 {[%clk 0:00:05]}  Bxd4 {[%clk 0:00:22]} 38. Rc8 {[%clk 0:00:03]}  Qxb2+ {[%clk 0:00:19]} 39. Qxb2 {[%clk 0:00:02]}  Rxb2+ {[%clk 0:00:20]} 40. Kc1 {[%clk 0:00:02]}  Bb3 {[%clk 0:00:12]} 41. d8=Q {[%clk 0:00:02]} 1-0


[Site "https://www.chess.com"]

[Event "Titled Tuesday Blitz July 20 2021"]
[White "Jovic, Stanoje"]
[Black "Vdovin, Vadim"]
[WhiteFideId "905020"]
[BlackFideId "24107158"]
[WhiteElo "2286"]
[BlackElo "2406"]
[Result "1-0"]
[Round "04"]
[TimeControl "180+1"]
[Date "2021.07.21"]
[WhiteClock "0:00:52"]
[BlackClock "0:00:03"]

1. c4 {[%clk 0:03:00]}  e6 {[%clk 0:02:57]} 2. g3 {[%clk 0:03:00]}  Nf6 {[%clk 0:02:57]} 3. Bg2 {[%clk 0:03:01]}  d5 {[%clk 0:02:58]} 4. Nf3 {[%clk 0:03:00]}  Be7 {[%clk 0:02:58]} 5. O-O {[%clk 0:03:00]}  O-O {[%clk 0:02:58]} 6. d4 {[%clk 0:03:00]}  dxc4 {[%clk 0:02:58]} 7. Ne5 {[%clk 0:03:00]}  Nc6 {[%clk 0:02:57]} 8. Bxc6 {[%clk 0:03:00]}  bxc6 {[%clk 0:02:57]} 9. Nxc6 {[%clk 0:03:01]}  Qe8 {[%clk 0:02:58]} 10. Nxe7+ {[%clk 0:03:01]}  Qxe7 {[%clk 0:02:59]} 11. Na3 {[%clk 0:03:02]}  Rd8 {[%clk 0:02:42]} 12. Nxc4 {[%clk 0:03:01]}  c5 {[%clk 0:02:43]} 13. b3 {[%clk 0:03:01]}  Rxd4 {[%clk 0:02:35]} 14. Qc2 {[%clk 0:03:01]}  Bb7 {[%clk 0:02:35]} 15. Bb2 {[%clk 0:02:57]}  Rd5 {[%clk 0:02:35]} 16. e4 {[%clk 0:02:52]}  Rh5 {[%clk 0:02:31]} 17. f3 {[%clk 0:02:48]}  Rg5 {[%clk 0:02:00]} 18. Rad1 {[%clk 0:02:44]}  h5 {[%clk 0:01:54]} 19. Qd2 {[%clk 0:02:42]}  Rg6 {[%clk 0:01:40]} 20. Qd6 {[%clk 0:02:41]}  Qe8 {[%clk 0:01:32]} 21. Qxc5 {[%clk 0:02:32]}  Ba6 {[%clk 0:01:19]} 22. Nd6 {[%clk 0:02:11]}  Qe7 {[%clk 0:01:20]} 23. Rf2 {[%clk 0:02:06]}  h4 {[%clk 0:01:20]} 24. g4 {[%clk 0:01:57]}  h3 {[%clk 0:01:05]} 25. Qe5 {[%clk 0:01:38]}  Rd8 {[%clk 0:00:55]} 26. Rfd2 {[%clk 0:01:35]}  Qc7 {[%clk 0:00:06]} 27. Nxf7 {[%clk 0:01:02]}  Rxd2 {[%clk 0:00:04]} 28. Qxc7 {[%clk 0:00:54]}  Rxd1+ {[%clk 0:00:04]} 29. Kf2 {[%clk 0:00:55]}  Rd2+ {[%clk 0:00:03]} 30. Ke3 {[%clk 0:00:54]}  Rxb2 {[%clk 0:00:03]} 31. Ne5 {[%clk 0:00:52]} 1-0


[Site "https://www.chess.com"]

[Event "Titled Tuesday Blitz July 20 2021"]
[White "Krallis, Christos"]
[Black "Shahade, Gregory"]
[WhiteFideId "4298896"]
[BlackFideId "2009064"]
[WhiteElo "2193"]
[BlackElo "2693"]
[Result "1/2-1/2"]
[Round "04"]
[TimeControl "180+1"]
[Date "2021.07.21"]
[WhiteClock "0:00:08"]
[BlackClock "0:00:13"]

1. d4 {[%clk 0:03:00]}  Nf6 {[%clk 0:03:00]} 2. c4 {[%clk 0:03:00]}  g6 {[%clk 0:02:59]} 3. Nf3 {[%clk 0:03:00]}  Bg7 {[%clk 0:02:58]} 4. g3 {[%clk 0:03:01]}  d5 {[%clk 0:02:58]} 5. Bg2 {[%clk 0:03:01]}  O-O {[%clk 0:02:57]} 6. O-O {[%clk 0:03:01]}  dxc4 {[%clk 0:02:57]} 7. Na3 {[%clk 0:02:59]}  c3 {[%clk 0:02:58]} 8. bxc3 {[%clk 0:03:00]}  c5 {[%clk 0:02:59]} 9. Bb2 {[%clk 0:02:57]}  Nc6 {[%clk 0:02:58]} 10. Re1 {[%clk 0:02:56]}  cxd4 {[%clk 0:02:57]} 11. cxd4 {[%clk 0:02:55]}  Ne4 {[%clk 0:02:58]} 12. Nc4 {[%clk 0:02:38]}  Be6 {[%clk 0:02:53]} 13. Nfe5 {[%clk 0:02:35]}  Nxe5 {[%clk 0:02:25]} 14. Nxe5 {[%clk 0:02:34]}  Qb6 {[%clk 0:02:23]} 15. Rb1 {[%clk 0:01:31]}  Bxe5 {[%clk 0:02:15]} 16. Bxe4 {[%clk 0:01:16]}  Rad8 {[%clk 0:02:05]} 17. Bc3 {[%clk 0:01:09]}  Qc7 {[%clk 0:02:01]} 18. Qc1 {[%clk 0:00:50]}  Bxd4 {[%clk 0:01:50]} 19. Bxd4 {[%clk 0:00:48]}  Qxc1 {[%clk 0:01:51]} 20. Rexc1 {[%clk 0:00:46]}  Rxd4 {[%clk 0:01:52]} 21. Bxb7 {[%clk 0:00:43]}  Bxa2 {[%clk 0:01:48]} 22. Ra1 {[%clk 0:00:42]}  Rd2 {[%clk 0:01:43]} 23. Bf3 {[%clk 0:00:41]}  e6 {[%clk 0:01:20]} 24. Rc7 {[%clk 0:00:38]}  a6 {[%clk 0:01:19]} 25. Rc6 {[%clk 0:00:28]}  a5 {[%clk 0:01:09]} 26. Ra6 {[%clk 0:00:15]}  Bc4 {[%clk 0:01:09]} 27. R6xa5 {[%clk 0:00:14]}  Bxe2 {[%clk 0:01:09]} 28. Bxe2 {[%clk 0:00:13]}  Rxe2 {[%clk 0:01:10]} 29. Ra7 {[%clk 0:00:11]}  Re5 {[%clk 0:01:09]} 30. Re7 {[%clk 0:00:10]}  g5 {[%clk 0:01:03]} 31. Raa7 {[%clk 0:00:09]}  Rf5 {[%clk 0:01:03]} 32. Kg2 {[%clk 0:00:09]}  Rb8 {[%clk 0:00:59]} 33. Ra2 {[%clk 0:00:05]}  Rb1 {[%clk 0:00:57]} 34. Rea7 {[%clk 0:00:05]}  Rbb5 {[%clk 0:00:53]} 35. R7a4 {[%clk 0:00:05]}  Kg7 {[%clk 0:00:53]} 36. h4 {[%clk 0:00:06]}  h6 {[%clk 0:00:50]} 37. hxg5 {[%clk 0:00:06]}  hxg5 {[%clk 0:00:50]} 38. Rd4 {[%clk 0:00:06]}  Kg6 {[%clk 0:00:50]} 39. Rad2 {[%clk 0:00:07]}  Ra5 {[%clk 0:00:50]} 40. Rd8 {[%clk 0:00:07]}  Rfb5 {[%clk 0:00:49]} 41. Rg8+ {[%clk 0:00:07]}  Kf6 {[%clk 0:00:49]} 42. Rh8 {[%clk 0:00:07]}  Rf5 {[%clk 0:00:50]} 43. Rh6+ {[%clk 0:00:06]}  Kg7 {[%clk 0:00:50]} 44. Rh1 {[%clk 0:00:06]}  Ra4 {[%clk 0:00:49]} 45. Re2 {[%clk 0:00:05]}  Rd4 {[%clk 0:00:48]} 46. Rhe1 {[%clk 0:00:06]}  Rdd5 {[%clk 0:00:47]} 47. Re4 {[%clk 0:00:06]}  Rd2 {[%clk 0:00:45]} 48. R4e2 {[%clk 0:00:06]}  Rd8 {[%clk 0:00:46]} 49. Re3 {[%clk 0:00:06]}  Rfd5 {[%clk 0:00:45]} 50. R3e2 {[%clk 0:00:07]}  R8d6 {[%clk 0:00:43]} 51. Re3 {[%clk 0:00:07]}  Ra5 {[%clk 0:00:42]} 52. R3e2 {[%clk 0:00:08]}  Raa6 {[%clk 0:00:35]} 53. Re3 {[%clk 0:00:08]}  f6 {[%clk 0:00:35]} 54. R3e2 {[%clk 0:00:09]}  e5 {[%clk 0:00:35]} 55. f4 {[%clk 0:00:07]}  exf4 {[%clk 0:00:30]} 56. gxf4 {[%clk 0:00:08]}  gxf4 {[%clk 0:00:30]} 57. Kf3 {[%clk 0:00:05]}  Ra3+ {[%clk 0:00:22]} 58. Kxf4 {[%clk 0:00:05]}  Rd4+ {[%clk 0:00:20]} 59. Re4 {[%clk 0:00:06]}  Rdd3 {[%clk 0:00:19]} 60. Re7+ {[%clk 0:00:06]}  Kf8 {[%clk 0:00:16]} 61. Re8+ {[%clk 0:00:06]}  Kf7 {[%clk 0:00:14]} 62. R8e7+ {[%clk 0:00:07]}  Kf8 {[%clk 0:00:12]} 63. Re8+ {[%clk 0:00:07]}  Kf7 {[%clk 0:00:13]} 64. R8e7+ {[%clk 0:00:08]}  Kf8 {[%clk 0:00:13]} 1/2-1/2


[Site "https://www.chess.com"]